Cogmind - Beta 13 @@@ ROGUE MODE // 2024.06.24 @ 18:59:11 Player: ZergFTW Result: Self-destructed Performance ------------- Evolutions (5) 2500 Regions Visited (9) 1800 Robots Destroyed (69) 345 Value Destroyed (1223) 1223 Prototype IDs (13) 260 Alien Tech Used (0) 0 Bonus (451) 451 TOTAL SCORE: 6579 Bonus ------- Follower Combat Kills 479 Friendly Fire -28 Cogmind --------- Core Integrity 542/1000 Matter 285/300 Energy 13/100 System Corruption 6% Temperature Cool (0) Movement Flying (32) Location -5/Factory Parts ------- > --- POWER (2) -------- (None) > --- PROPULSION (7) --- VTOL Module Faulty Biomechanical Wings Cooled Nuclear Pulse Thruster > --- UTILITY (6) ------ Enhanced Optical Array Advanced Sensor Array Advanced Signal Interpreter Hacking Suite Improved Hacking Suite > --- WEAPON (2) ------- (None) > --- INVENTORY (5) ---- Micro Nuclear Core Micro Nuclear Core High-capacity Matter Pod (17) Structural Scanner KE Penetrator Peak State ------------ > --- POWER ------------ Micro Nuclear Core Micro Nuclear Core > --- PROPULSION ------- Cesium-ion Thruster Biomechanical Wings Cooled Nuclear Pulse Thruster Flightbrick > --- UTILITY ---------- Medium Storage Unit Structural Scanner Enhanced Optical Array Advanced Sensor Array Signal Interpreter Improved Transmission Jammer Hacking Suite Improved Hacking Suite > --- WEAPON ----------- KE Penetrator Phasing Sabre > --- INVENTORY -------- Micro Nuclear Core Micro Nuclear Core High-capacity Matter Pod Structural Scanner Advanced Sensor Array Advanced Signal Interpreter Stasis Canceller Transmission Jammer Gauss Rifle Gauss Cannon [Rating: 102] Favorites ----------- Power Light Ion Engine Engine Light Ion Engine Power Core Micro Nuclear Core Propulsion Hover Unit Wheel Wheel Hover Unit Hover Unit Flight Unit Flightbrick Utility Medium Storage Unit Device Structural Scanner Storage Medium Storage Unit Processor Signal Interpreter Hackware Hacking Suite Weapon Assault Rifle Energy Gun EM Pulse Gun Energy Cannon EM Pulse Cannon Ballistic Gun Assault Rifle Ballistic Cannon Light Cannon Launcher Rocket Launcher Impact Weapon Maul Slashing Weapon Axe Build | -11 -10 -10 -8 -8 -7 -6 -6 -6 -5 ------- Run | Yrd Mat Sub Mat Sto Fac Fac Ext Cet Fac Slots Evolved 10 | . . . 4 . 2 2 . . 2 Power 1 | . . . 1 . . . . . . Propulsion 5 | . . . 2 . 1 1 . . 1 Utility 4 | . . . 1 . 1 1 . . 1 Weapon . | . . . . . . . . . . Parts Attached 124 | 7 27 3 12 12 7 13 21 2 20 Power 26 | 1 5 1 4 4 1 2 6 . 2 Engine 16 | 1 5 1 4 3 . . 2 . . Core 10 | . . . . 1 1 2 4 . 2 Reactor . | . . . . . . . . . . Propulsion 21 | 2 7 1 1 . 1 3 1 . 5 Treads . | . . . . . . . . . . Leg . | . . . . . . . . . . Wheel 2 | 2 . . . . . . . . . Hover 8 | . 7 1 . . . . . . . Flight 11 | . . . 1 . 1 3 1 . 5 Utility 26 | 2 6 . 4 1 2 1 5 . 5 Device 16 | 1 5 . 3 1 2 1 1 . 2 Storage 4 | 1 1 . . . . . 2 . . Processor 3 | . . . 1 . . . . . 2 Hackware 3 | . . . . . . . 2 . 1 Protection . | . . . . . . . . . . Artifact . | . . . . . . . . . . Weapon 51 | 2 9 1 3 7 3 7 9 2 8 Energy Gun 5 | 2 3 . . . . . . . . Energy Cannon 1 | . . . . 1 . . . . . Ballistic Gun 22 | . 6 . 2 2 1 2 5 1 3 Ballistic Cannon 4 | . . 1 1 . . . . . 2 Launcher 5 | . . . . 1 2 2 . . . Special Weapon . | . . . . . . . . . . Impact Weapon 6 | . . . . 1 . 2 3 . . Slashing Weapon 8 | . . . . 2 . 1 1 1 3 Piercing Weapon . | . . . . . . . . . . Special Melee Weapon . | . . . . . . . . . . Unidentified Prototypes 3 | . . . . . . . 1 . 2 Parts Lost 19 | . 1 . 1 2 . 1 3 . 11 Power 4 | . . . . 1 . 1 . . 2 Propulsion 5 | . . . . . . . 2 . 3 Utility 5 | . . . . 1 . . 1 . 3 Weapon 5 | . 1 . 1 . . . . . 3 Highest Loss Streak 7 | . 1 . 1 2 . 1 3 . 7 To Critical Strikes . | . . . . . . . . . . Average Slot Usage (%) 85 | . 97 100 66 74 73 81 75 73 71 Engine 9 | . 13 14 11 13 6 . 1 . . Core 3 | . . . . . 6 9 9 11 6 Wheel 1 | . 4 . . . . . . . . Hover 11 | . 22 28 . . . . . . . Flight 6 | . . . 7 7 13 17 14 11 18 Device 18 | . 13 14 19 25 26 29 24 17 8 Storage 9 | . 14 14 7 7 6 5 4 5 4 Processor 3 | . . . 7 7 6 5 5 5 8 Hackware 1 | . . . . . . . 2 11 13 Energy Gun 3 | . 7 . . . . . . . . Ballistic Gun 11 | . 18 23 7 3 . 4 4 8 3 Naked Turns . | . . . . . . . . . . Heaviest Build 35 | 15 18 19 24 32 31 34 34 29 35 Greatest Support 35 | 26 26 12 24 33 29 35 35 29 35 Greatest Overweight (x) 3 | 1 3 1 . . 1 . 1 . 3 Average Overweight (x) . | . . 1 . . . . . . . Largest Inventory Capacity 10 | 8 10 10 10 10 10 10 10 10 10 Average Capacity 9 | 7 9 10 10 10 10 10 9 10 9 Most Carried 10 | 7 10 10 10 10 10 10 10 10 10 Average Carried 9 | 5 8 9 8 9 9 9 9 9 9 Final Capacity 10 | 8 10 10 10 10 10 10 10 10 5 Final Carried 10 | 6 10 10 10 10 10 10 10 10 5 Class Distribution -------------------- 46% | Mutant 21% | Infiltrator-Ninja 8% | Commander-Scout 5% | Scavenger-Scout 5% | Hacker-Scout 3% | Infiltrator-Scout Dominant Class ---------------- Mutant | -10/Materials Mutant | -10/Subcaves Scavenger-Scout | -8/Materials Commander-Scout | -8/Storage Infiltrator-Ninja | -7/Factory Infiltrator-Ninja | -6/Factory Infiltrator-Ninja | -6/Extension Infiltrator-Ninja | -6/Cetus Hacker-Scout | -5/Factory Resources | -11 -10 -10 -8 -8 -7 -6 -6 -6 -5 ----------- Run | Yrd Mat Sub Mat Sto Fac Fac Ext Cet Fac Matter Collected 3052 | 270 744 10 333 237 . 245 659 . 554 Remotely . | . . . . . . . . . . Salvage Created 2301 | 118 773 . 167 90 . 125 392 . 636 Parts 139 | 9 54 . 16 3 . 14 8 . 35 Haulers Intercepted 4 | . 2 . . 1 . . 1 . . Recyclers Shooed 3 | . 2 . . . . . . . 1 Parts Field Recycled . | . . . . . . . . . . Retrieved Matter . | . . . . . . . . . . Parts Self-Destructed . | . . . . . . . . . . Prevented . | . . . . . . . . . . Kills | -11 -10 -10 -8 -8 -7 -6 -6 -6 -5 ------- Run | Yrd Mat Sub Mat Sto Fac Fac Ext Cet Fac Combat Hostiles Destroyed 31 | . 9 . 9 . . 6 . . 7 Melee 4 | . . . . . . . . . 4 Guns 16 | . 8 . 5 . . 2 . . 1 Cannons 6 | . . . 4 . . . . . 2 AOE 5 | . 1 . . . . 4 . . . Classes Destroyed 12 | 2 6 . 1 . . 1 1 . 1 Worker 9 | . 3 . . 1 . 1 1 . 3 Builder 6 | . 4 . . . . . 1 . 1 Tunneler 2 | 2 . . . . . . . . . Hauler 4 | . 2 . . 1 . . 1 . . Recycler 8 | 1 3 . . . . . 2 . 2 Operator 2 | . . . . . . . 1 . 1 Watcher 7 | . 3 . . 1 . 1 1 . 1 Swarmer 21 | . 6 . 7 . . 4 . . 4 Grunt 5 | . 3 . 1 . . . . . 1 Sentry 1 | . . . . . . . . . 1 Hunter 1 | . . . 1 . . . . . . Programmer 3 | . . . . . . 2 . . 1 Best Kill Streak 12 | 3 4 . 5 1 . 6 3 . 12 Combat Bots Only 5 | . 3 . 5 . . 5 . . 5 Max Kills in Single Turn 3 | 1 1 . 1 1 . 3 1 . 2 Gunslinging . | . . . . . . . . . . Exploded 3 | . 1 . . . . 3 . . . Melee 1 | . . . . . . . . . 1 Uniques/NPCs Destroyed . | . . . . . . . . . . Combat | -11 -10 -10 -8 -8 -7 -6 -6 -6 -5 -------- Run | Yrd Mat Sub Mat Sto Fac Fac Ext Cet Fac Hostile Shots Fired 436 | . 35 . 85 18 . 28 162 4 104 Missed 193 | . 9 . 39 11 . 11 87 1 35 Damage Taken 4244 | . 281 . 459 267 48 662 1005 77 1445 Core 675 | . 76 . 67 17 24 22 11 . 458 Absorbed by Shields 16 | . . . . . . . 16 . . Regen/Repaired (Parts) 62 | . 17 . . 45 . . . . . Core Remaining (%) 89 | 100 . 69 . 84 96 . . 96 . Volleys Fired 181 | 7 65 5 31 17 3 20 9 . 24 Largest 2 | 2 2 1 2 2 1 2 2 . 2 Hottest 90 | 90 90 35 55 68 33 56 51 . 76 Shots Fired 324 | 14 114 5 62 24 3 40 16 . 46 Gun 244 | 14 114 . 32 10 . 35 16 . 23 Cannon 71 | . . 5 30 13 . . . . 23 Launcher 9 | . . . . 1 3 5 . . . Special . | . . . . . . . . . . Kinetic 239 | . 58 5 62 17 . 35 16 . 46 Thermal 20 | 7 13 . . . . . . . . Explosive 9 | . . . . 1 3 5 . . . Electromagnetic 56 | 7 43 . . 6 . . . . . Robot Hit Streak 12 | 5 8 . 6 5 2 5 3 . 12 Robot Miss Streak 6 | 1 4 . 3 5 2 6 3 . 3 Penetration Max 1 | . . . . . . . . . 1 Secondary Targets 2 | . 2 . . . . . . . . Max Gunslinging Chain 1 | . 1 . . . . . . . . Shots Hit Robots 195 | 10 67 . 34 16 1 15 12 . 40 Core Hits 94 | 4 30 . 13 6 . 19 4 . 18 Critical Kills 3 | . 1 . . 1 . . . . 1 Critical Parts Destroyed 3 | . . . . . . . 2 . 1 Critical Strikes 11 | 1 2 . . 2 . . 2 . 4 Burn 2 | 1 1 . . . . . . . . Destroy 3 | . 1 . . . . . . . 2 Blast 2 | . . . . . . . . . 2 Smash 3 | . . . . 1 . . 2 . . Sever 1 | . . . . 1 . . . . . Melee Attacks 63 | . . . . 8 4 7 25 1 18 Impact 32 | . . . . 5 . 2 25 . . Slashing 31 | . . . . 3 4 5 . 1 18 Piercing . | . . . . . . . . . . Sneak Attacks 9 | . . . . 1 . . 5 . 3 Combat Hostiles 1 | . . . . . . . . . 1 Follow-up Attacks . | . . . . . . . . . . Damage Inflicted 4998 | 130 983 . 523 448 150 744 535 . 1485 Guns 2067 | 130 858 . 269 63 . 223 142 . 382 Cannons 871 | . . . 254 149 . . . . 468 Explosions 823 | . 125 . . 27 150 521 . . . Melee 1237 | . . . . 209 . . 393 . 635 Ramming . | . . . . . . . . . . Kinetic 2363 | . 494 . 523 131 . 223 142 . 850 Thermal 287 | 39 248 . . . . . . . . Explosive 698 | . . . . 27 150 521 . . . Electromagnetic 413 | 91 241 . . 81 . . . . . Impact 524 | . . . . 131 . . 393 . . Slashing 713 | . . . . 78 . . . . 635 Piercing . | . . . . . . . . . . Highest Corruption 8 | . . . . 2 . 1 8 8 6 Average Corruption 4 | . . . . 2 . 1 5 8 2 Corruption Purged . | . . . . . . . . . . Corruption Blocked . | . . . . . . . . . . Effects 27 | . . . . 2 . . 18 2 5 Message Errors 4 | . . . . . . . 2 . 2 Matter Fused 11 | . . . . 1 . . 9 . 1 Heat Flow Errors 5 | . . . . . . . 3 1 1 Energy Discharges 2 | . . . . . . . 2 . . Parts Rejected 1 | . . . . . . . 1 . . Data Loss (major) 3 | . . . . 1 . . 1 1 . Weapon Failures 1 | . . . . . . . . . 1 Overload Shots . | . . . . . . . . . . Overflow Damage 487 | . . . 17 . 7 3 283 . 177 Projectiles 17 | . . . 17 . . . . . . Explosions 10 | . . . . . 7 3 . . . Melee 460 | . . . . . . . 283 . 177 Knockbacks 17 | . . . 9 1 . . 2 . 5 Impact 2 | . . . . . . . 2 . . Kinetic 13 | . . . 7 1 . . . . 5 Secondary 2 | . . . 2 . . . . . . Self-Inflicted Damage 102 | . 36 . . . 49 17 . . . Shots 3 | . 1 . . . 1 1 . . . Rammed . | . . . . . . . . . . Targets Rammed . | . . . . . . . . . . Kicked . | . . . . . . . . . . Crushed . | . . . . . . . . . . Highest Temperature 280 | 150 136 . 84 90 . 280 197 238 143 Average Temperature 55 | 65 33 . 30 23 . 82 41 188 60 Received Heat Transfer 594 | . 54 . 63 45 . 84 195 18 135 Effects 1 | . . . . . . 1 . . . Energy Bleed 1 | . . . . . . 1 . . . Siege Activations . | . . . . . . . . . . Robots Corrupted . | . . . . . . . . . . Combat Hostiles . | . . . . . . . . . . Parts Fried 6 | . . . . . . . 6 . . Impact Corruptions 10 | . . . . . . . 10 . . Robots Melted . | . . . . . . . . . . Combat Hostiles . | . . . . . . . . . . Parts Melted 1 | . 1 . . . . . . . . Heat Transferred 779 | 185 594 . . . . . . . . Parts Sabotaged . | . . . . . . . . . . Parts Stolen . | . . . . . . . . . . Parts Stripped . | . . . . . . . . . . Power Chain Reactions 3 | . 3 . . . . . . . . Alert | -11 -10 -10 -8 -8 -7 -6 -6 -6 -5 ------- Run | Yrd Mat Sub Mat Sto Fac Fac Ext Cet Fac Peak Influence 484 | 15 185 . 185 484 215 386 292 179 302 Initial 189 | . 9 . 26 73 163 105 189 163 100 Average 141 | 5 82 . 86 278 177 179 177 174 198 Maximum Alert Level 2 | . . . . 2 1 1 1 . 1 Low Security (%) 80 | 100 100 . 100 18 94 86 70 100 51 Level 1 17 | . . . . 62 5 13 29 . 48 Level 2 2 | . . . . 18 . . . . . Level 3 . | . . . . . . . . . . Level 4 . | . . . . . . . . . . Level 5 . | . . . . . . . . . . High Security . | . . . . . . . . . . Max Security . | . . . . . . . . . . Squads Dispatched 16 | . 1 . 2 3 . 1 5 . 4 Investigation 9 | . 1 . 1 1 . . 4 . 2 Extermination 1 | . . . . . . . . . 1 Reinforcement 5 | . . . 1 2 . . 1 . 1 Assault 1 | . . . . . . 1 . . . Garrison . | . . . . . . . . . . Intercept . | . . . . . . . . . . Searches Triggered . | . . . . . . . . . . Construction Impeded . | . . . . . . . . . . Haulers Reinforced . | . . . . . . . . . . Active Scanning Responses . | . . . . . . . . . . Cargo Convoy Interrupts . | . . . . . . . . . . Stealth | -11 -10 -10 -8 -8 -7 -6 -6 -6 -5 --------- Run | Yrd Mat Sub Mat Sto Fac Fac Ext Cet Fac Distress Signals 7 | . . . 2 1 1 . 1 1 1 Communications Jammed 32 | . . . . . . . 32 . . Distress Signals 32 | . . . . . . . 32 . . Times Spotted 128 | . 15 . 26 21 3 14 31 4 14 Peak Tracking Total 16 | . 3 . 16 6 3 9 10 5 5 Tactical Retreats 14 | . 1 . 1 . . 2 10 . . Traps | -11 -10 -10 -8 -8 -7 -6 -6 -6 -5 ------- Run | Yrd Mat Sub Mat Sto Fac Fac Ext Cet Fac Traps Triggered 11 | . 4 . . 1 . . 5 . 1 Indirectly . | . . . . . . . . . . Trap Hack Attempts . | . . . . . . . . . . Triggered . | . . . . . . . . . . Disarmed . | . . . . . . . . . . Reprogrammed . | . . . . . . . . . . Reused . | . . . . . . . . . . Traps Extracted . | . . . . . . . . . . Installed . | . . . . . . . . . . Triggered . | . . . . . . . . . . Machines | -11 -10 -10 -8 -8 -7 -6 -6 -6 -5 ---------- Run | Yrd Mat Sub Mat Sto Fac Fac Ext Cet Fac Machines Disabled 5 | . 2 1 . 1 . . 1 . . Max in Single Turn 1 | . 1 1 . 1 . . 1 . . Garrison Access 1 | . . . . . . 1 . . . Machines Repaired . | . . . . . . . . . . Machines Dismantled . | . . . . . . . . . . Machines Sabotaged . | . . . . . . . . . . Overloaded Fab Kills . | . . . . . . . . . . Hacking | -11 -10 -10 -8 -8 -7 -6 -6 -6 -5 --------- Run | Yrd Mat Sub Mat Sto Fac Fac Ext Cet Fac Machines Accessed 36 | . 8 1 2 7 1 4 11 . 2 Terminals 26 | . 7 . 2 4 1 3 9 . . Fabricators 1 | . . . . . . . . . 1 Repair Stations 3 | . 1 . . 2 . . . . . Recycling Units 4 | . . . . 1 . 1 2 . . Scanalyzers 1 | . . . . . . . . . 1 Garrison Access . | . . . . . . . . . . Total Hacks 82 | . 23 9 8 14 1 4 19 . 4 Successful 37 | . 11 9 2 5 . 2 5 . 3 Failed 44 | . 11 . 6 9 1 2 14 . 1 Catastrophic 17 | . 4 . 2 3 . 2 6 . . Database Lockouts 1 | . 1 . . . . . . . . Manual 37 | . 15 1 7 4 1 2 7 . . Terminals 51 | . 18 . 8 4 1 3 17 . . Fabricators 1 | . . . . . . . . . 1 Repair Stations 14 | . 5 . . 9 . . . . . Recycling Units 4 | . . . . 1 . 1 2 . . Scanalyzers 3 | . . . . . . . . . 3 Garrison Access . | . . . . . . . . . . Terminal Hacks 22 | . 7 9 2 . . 1 3 . . Record 9 | . 1 8 . . . . . . . Robot Analysis 2 | . 2 . . . . . . . . Open Door 3 | . . . . . . 1 2 . . Branch Access Points 2 | . 1 . 1 . . . . . . Terminal Index 1 | . 1 . . . . . . . . Unreport Threat 2 | . . . 1 . . . 1 . . Locate Traps 2 | . 2 . . . . . . . . Derelict Proto ID Bank 1 | . . 1 . . . . . . . Fabricator Hacks 1 | . . . . . . . . . 1 Build 1 | . . . . . . . . . 1 Repair Station Hacks 8 | . 4 . . 4 . . . . . Scan Component 4 | . 2 . . 2 . . . . . Repair 4 | . 2 . . 2 . . . . . Recycling Unit Hacks 4 | . . . . 1 . 1 2 . . Report Inventory 4 | . . . . 1 . 1 2 . . Scanalyzer 2 | . . . . . . . . . 2 Insert Component 1 | . . . . . . . . . 1 Analyze 1 | . . . . . . . . . 1 Garrison Access Hacks . | . . . . . . . . . . Unauthorized Hacks . | . . . . . . . . . . Terminals . | . . . . . . . . . . Fabricators . | . . . . . . . . . . Repair Stations . | . . . . . . . . . . Recycling Units . | . . . . . . . . . . Scanalyzers . | . . . . . . . . . . Garrison Access . | . . . . . . . . . . Data Cores Recovered 1 | . . . . . . . 1 . . Used 1 | . . . . . . . 1 . . Hacking Detections 28 | . 8 . 2 5 1 2 8 . 2 Full Trace Events 7 | . 1 . 1 . . . 4 . 1 Feedback Events 1 | . . . . . . . 1 . . Corruption 1 | . . . . . . . 1 . . Feedback Blocked . | . . . . . . . . . . Robot Schematics Acquired . | . . . . . . . . . . Robots Built . | . . . . . . . . . . Authchips . | . . . . . . . . . . Time . | . . . . . . . . . . Total Robot Build Rating . | . . . . . . . . . . Part Schematics Acquired 1 | . . . . . . . . . 1 Parts Built 2 | . . . . . . . . . 2 Authchips . | . . . . . . . . . . Time 53 | . . . . . . . . . 53 Total Part Build Rating 12 | . . . . . . . . . 12 Parts Repaired 4 | . 2 . . 2 . . . . . Time 132 | . 62 . . 70 . . . . . Parts Recycled . | . . . . . . . . . . Recycled Matter . | . . . . . . . . . . Retrieved Matter . | . . . . . . . . . . Retrieved Components . | . . . . . . . . . . Parts Scanalyzed 1 | . . . . . . . . . 1 Part Schematics Acquired 1 | . . . . . . . . . 1 Parts Damaged . | . . . . . . . . . . Bothacking | -11 -10 -10 -8 -8 -7 -6 -6 -6 -5 ------------ Run | Yrd Mat Sub Mat Sto Fac Fac Ext Cet Fac Used RIF Installer . | . . . . . . . . . . Robots Hacked . | . . . . . . . . . . Non-combat . | . . . . . . . . . . Combat . | . . . . . . . . . . Robot Hacks Applied . | . . . . . . . . . . Relay Couplers Released 2 | . . . . . . 2 . . . Machine Destruction 2 | . . . . . . 2 . . . Fabnet Peak Effective % . | . . . . . . . . . . Robots Rewired . | . . . . . . . . . . Allies Hacked . | . . . . . . . . . . Hacks Repelled . | . . . . . . . . . . Allies | -11 -10 -10 -8 -8 -7 -6 -6 -6 -5 -------- Run | Yrd Mat Sub Mat Sto Fac Fac Ext Cet Fac Total Allies 13 | . . . . 10 . . 3 . . Largest Group 10 | . . . . 10 . . 2 . . Highest-Rated Group 173 | . . . . 173 . . 70 . . Highest-Rated Ally 39 | . . . . 29 . . 39 . . Total Orders . | . . . . . . . . . . Ally Attacks 144 | . . . . 120 . . 24 . . Total Damage 1911 | . . . . 1478 . . 433 . . Kills 16 | . . . . 14 . . 2 . . Allies Corrupted . | . . . . . . . . . . Allies Melted . | . . . . . . . . . . Intel | -11 -10 -10 -8 -8 -7 -6 -6 -6 -5 ------- Run | Yrd Mat Sub Mat Sto Fac Fac Ext Cet Fac Robot Analysis Total 2 | . 2 . . . . . . . . Derelict Logs Recovered . | . . . . . . . . . . Drone Launches . | . . . . . . . . . . Drone Recoveries . | . . . . . . . . . . Exploration | -11 -10 -10 -8 -8 -7 -6 -6 -6 -5 ------------- Run | Yrd Mat Sub Mat Sto Fac Fac Ext Cet Fac Turns Passed 4483 | 73 1828 309 230 471 223 324 674 24 327 Spaces Moved 5168 | 42 1382 233 261 716 268 541 1279 54 392 Core 18 | 17 1 . . . . . . . . Treads . | . . . . . . . . . . Legs . | . . . . . . . . . . Wheels 256 | 25 231 . . . . . . . . Hover 1383 | . 1150 233 . . . . . . . Flight 3511 | . . . 261 716 268 541 1279 54 392 Fastest Speed 29 | 50 56 116 40 40 34 30 30 34 29 Average Speed 57 | 78 108 116 40 40 34 30 31 34 32 Slowest Speed 245 | 100 200 116 40 40 94 32 94 34 245 Overloaded Moves . | . . . . . . . . . . Propulsion Burnouts . | . . . . . . . . . . Robots Hopped 36 | . . . 8 3 2 1 19 . 3 Cave-ins Triggered . | . . . . . . . . . . Exploration Rate (%) 35 | 3 92 10 27 77 6 17 86 23 16 Regions Visited 9 Branch Regions 4 Pre-discovered Areas . | . . . . . . . . . . Known Exits Taken 6 | . . . 1 1 1 1 1 1 . Unknown Exits Taken 3 | 1 1 1 . . . . . . . Scrap Searched 1 | . . 1 . . . . . . . Spaces Dug 27 | . . . . 14 3 7 . 1 2 Terrain Destroyed 75 | . 9 . . 14 21 24 . 1 6 Melee 15 | . . . . 2 3 7 . 1 2 Projectile 4 | . . . . . . . . . 4 AOE 56 | . 9 . . 12 18 17 . . . Terrain Rammed . | . . . . . . . . . . Walls Destroyed . | . . . . . . . . . . Machines Disabled . | . . . . . . . . . . Actions | -11 -10 -10 -8 -8 -7 -6 -6 -6 -5 --------- Run | Yrd Mat Sub Mat Sto Fac Fac Ext Cet Fac Total 6191 | 67 1604 269 317 861 387 648 1468 57 513 Wait 456 | . 81 14 6 87 100 58 62 . 48 Move 5093 | 41 1381 232 245 710 263 538 1244 53 386 Hop 30 | . . . 7 2 2 1 15 . 3 Pick Up 95 | 12 25 6 10 11 3 6 17 . 5 Fast Attach 28 | 1 9 . . 3 1 2 4 . 8 Attach 39 | 6 5 . 7 3 4 3 5 1 5 Detach 18 | . 3 . 1 3 3 . 5 1 2 Swap 57 | . 13 3 5 6 2 8 12 1 7 Drop 79 | . 22 9 5 11 2 5 18 . 7 Fire 181 | 7 65 5 31 17 3 20 9 . 24 Melee 63 | . . . . 8 4 7 25 1 18 Ram . | . . . . . . . . . . Kick . | . . . . . . . . . . Crush . | . . . . . . . . . . Escape Stasis 52 | . . . . . . . 52 . . Rewire . | . . . . . . . . . . Trap . | . . . . . . . . . . Miscellaneous . | . . . . . . . . . . Route ------- -11/Scrapyard -10/Materials (discovered 5 exits: [*Mat x3] / *Min / *Sub) -10/Subcaves -8/Materials (discovered 2 exits: *Sto x2) -8/Storage -7/Factory -6/Factory -6/Extension (discovered 2 exits: *Fac / *Cet) -6/Cetus -5/Factory History --------- Turn | Location | Event 8 | -11/Scrapyard | Discovered new exit (range 15) 74 | -11/Scrapyard | Entered Materials 180 | -10/Materials | Discovered new exit (range 7) 313 | -10/Materials | Build established: Mutant 473 | -10/Materials | Identified exit to Mines 685 | -10/Materials | Repaired Corrupted Structural Scanner 712 | -10/Materials | Repaired Hover Unit 730 | -10/Materials | Discovered new exit (range 14) 910 | -10/Materials | Discovered new exit (range 16) 1261 | -10/Materials | Discovered new exit (range 13) 1544 | -10/Materials | Central database locked down 1902 | -10/Materials | Entered Subcaves 1903 | -10/Subcaves | Shifting Twisted Machinery released Sub. Beam Cannon 1903 | -10/Subcaves | Shifting Twisted Machinery released Sub. Shrapnel Launcher 2096 | -10/Subcaves | Visited 4L-MR0's lab 2142 | -10/Subcaves | Found Flightbrick 2182 | -10/Subcaves | Discovered new exit (range 8) 2211 | -10/Subcaves | Entered Materials 2211 | -8/Materials | Evolved 4 slots: Power x1, Propulsion x2, Utility x1 2213 | -8/Materials | Attached Flightbrick, gained temporary slots: Utility x3 2299 | -8/Materials | Identified exit to Storage 2441 | -8/Materials | Entered Storage 2448 | -8/Storage | Assisted by bots powering up and referring to "LRC-V3" 2660 | -8/Storage | Repaired Gauss Rifle 2727 | -8/Storage | Repaired Sensor Array 2733 | -8/Storage | Build established: Commander-Scout 2805 | -8/Storage | Discovered new exit (range 15) 2810 | -8/Storage | Identified exit to Factory 2912 | -8/Storage | Lost 3 allies 2912 | -8/Storage | Entered Factory 2912 | -7/Factory | Evolved 2 slots: Propulsion x1, Utility x1 3127 | -7/Factory | Discovered new exit (range 8) 3135 | -7/Factory | Identified exit to Factory 3135 | -7/Factory | Entered another Factory area 3135 | -6/Factory | Evolved 2 slots: Propulsion x1, Utility x1 3207 | -6/Factory | Build established: Infiltrator-Ninja 3457 | -6/Factory | Discovered new exit (range 10) 3459 | -6/Factory | Identified exit to Extension 3459 | -6/Factory | Entered Extension 3543 | -6/Extension | Spotted B-75 Beast 3852 | -6/Extension | Spotted B-75 Beast 3901 | -6/Extension | Lost 3 parts (2n1u) 3945 | -6/Extension | Rescued a captive Derelict 3991 | -6/Extension | Rescued a captive Derelict 3991 | -6/Extension | Rescued a captive Derelict 4126 | -6/Extension | Discovered new exit (range 10) 4126 | -6/Extension | Discovered new exit (range 6) 4129 | -6/Extension | Identified exit to Factory 4131 | -6/Extension | Identified exit to Cetus 4133 | -6/Extension | Entered Cetus 4140 | -6/Cetus | Spotted Cetus Guard 4140 | -6/Cetus | Spotted Cetus Guard 4140 | -6/Cetus | Spotted Cetus Guard 4148 | -6/Cetus | Discovered exit to Factory (range 16) 4157 | -6/Cetus | Entered Factory 4157 | -5/Factory | Evolved 2 slots: Propulsion x1, Utility x1 4201 | -5/Factory | Spotted B-75 Beast 4352 | -5/Factory | Fabricated KE Penetrator? 4418 | -5/Factory | Lost 7 parts (2p2n2u1w) 4484 | -5/Factory | Self-destructed Last Messages --------------- 04474_ Tesla Bomb Trap short circuited. 04474_ A bubble of electromagnetic force engulfs the area. 04474_ An alarm sounds. 04474_ ALERT: Alarm triggered, dispatching investigation squad. 04474_ Tesla Bomb Trap short circuited. 04474_ A bubble of electromagnetic force engulfs the area. 04474_ Tesla Bomb Trap short circuited. 04474_ A bubble of electromagnetic force engulfs the area. 04474_ Tesla Bomb Trap short circuited. 04474_ VTOL Module destroyed. 04474_ A bubble of electromagnetic force engulfs the area. 04474_ Med. Storage Unit destroyed. 04478_ 2HT0G8S#2